[Event "-chT Youth Countries 2019"]
[Site "Wuerzburg"]
[Date "2019.10.02"]
[Round "2.1"]
[White "Lagunow, Raphael"]
[Black "Herbrig, Alexander"]
[Result "1-0"]
[ECO "B35"]
[WhiteElo "2438"]
[BlackElo "2295"]
[Annotator "NA RC"]
[PlyCount "93"]
[EventDate "2019.10.02"]
[EventType "team-tourn"]
[EventRounds "7"]
[EventCountry "GER"]
[SourceTitle "playchess.com"]
[Source "ChessBase"]
[SourceQuality "1"]
[WhiteTeam "Berlin"]
[BlackTeam "Sachsen"]
[TimeControl "40/5400+30:1800+30"]

1. e4 {[%emt 0:00:00]} c5 {[%emt 0:00:00]} 2. Nf3 {[%emt 0:00:00]} Nc6 {[%emt 0:00:00]} 3. d4 {[%emt 0:00:00]} cxd4 {[%emt 0:00:00]} 4. Nxd4 {[%emt 0:00:00]} g6 {[%emt 0:00:00]} 5. Nc3 {[%emt 0:00:15]} Bg7 {[%emt 0:00:07]} 6. Be3 {[%emt 0:00:08]} Nf6 {[%emt 0:00:19]} 7. Bc4 {[%emt 0:00:08]} O-O {[%emt 0:00:16]} 8. Bb3 {[%emt 0:00:05]} d6 {[%emt 0:00:09]} 9. f3 {[%emt 0:01:55]} Bd7 {[%emt 0:00:12]} 10. a4 {[%emt 0:09:53]} Qa5 {[%emt 0:10:05]} 11. O-O {[%emt 0:14:44]} a6 {[%emt 0:13:38]} 12. Qd2 {[%emt 0:04:27]} Rfc8 {[%emt 0:04:29]} 13. Rfd1 {[%emt 0:02:28]} Ne5 {[%emt 0:04:39]} 14. Qe2 {[%emt 0:02:00]} Qc7 {[%emt 0:03:03]} 15. a5 {[%emt 0:14:04]} Nc4 {[%emt 0:01:15]} 16. Bxc4 {[%emt 0:03:17]} Qxc4 {[%emt 0:03:08]} 17. Qf2 {[%emt 0:01:11]} d5 {[%emt 0:21:22]} 18. e5 {[%emt 0:05:10]} Ne8 {[%emt 0:00:53]} 19. f4 {[%emt 0:02:32]} Nc7 {[%emt 0:02:17]} 20. Nb3 {[%emt 0:03:03]} Be8 {[%emt 0:12:06]} 21. Rd4 {[%emt 0:20:35]} Qc6 {[%emt 0:00:15]} 22. Rb4 {[%emt 0:00:26]} Nb5 {[%emt 0:03:39]} 23. Nxb5 {[%emt 0:00:23]} axb5 {[%emt 0:00:02]} 24. c3 {[%emt 0:00:08]} e6 {[%emt 0:01:00]} 25. Bc5 {[%emt 0:01:07]} Ra6 {[%emt 0:04:23]} 26. h4 {[%emt 0:00:49]} h5 {[%emt 0:04:09]} 27. Rd4 {[%emt 0:09:04]} Bf8 {[%emt 0:04:34]} 28. Bxf8 {[%emt 0:01:16]} Kxf8 {[%emt 0:00:01]} 29. Qg3 {[%emt 0:00:08]} b6 {[%emt 0:01:11]} 30. axb6 {[%emt 0:02:24]} Rxa1+ {[%emt 0:00:02]} 31. Nxa1 {[%emt 0:00:01]} Qxb6 {[%emt 0:00:26]} 32. Nc2 {[%emt 0:00:54]} Qa7 {[%emt 0:01:22]} 33. Qf2 {[%emt 0:00:34]} Qa2 {[%emt 0:01:45]} 34. Na3 {[%emt 0:00:35]} Qa1+ {[%emt 0:01:56]} 35. Kh2 {[%emt 0:00:06]} Rb8 {[%emt 0:01:22]} 36. Rb4 {[%emt 0:00:45]} Qd1 {[%emt 0:00:52]} 37. Nc2 {[%emt 0:02:59]} Kg7 {[%emt 0:01:24]} 38. Nd4 {[%emt 0:00:52]} Qc1 {[%emt 0:01:19]} 39. Nxe6+ {[%emt 0:00:17]} Kh8 {[%emt 0:01:12]} 40. Ng5 {[%emt 0:00:30]} Ra8 {[%emt 0:00:30]} 41. f5 {[%emt 0:08:51]} Qb1 {[%emt 0:06:07]} 42. fxg6 {[%emt 0:05:20]} Qxg6 {[%emt 0:00:28]} 43. Rf4 {[%emt 0:00:07]} Kg8 {[%emt 0:03:09]} 44. Rf6 {[%emt 0:01:56]} Qg7 {[%emt 0:01:24]} 45. e6 {[%emt 0:00:06]} Ra7 {[%emt 0:01:42]} 46. exf7+ {[%emt 0:01:38]} Bxf7 {[%emt 0:00:11]} 47. Rxf7 {[%emt 0:00:24] normal} 1-0

[Event "-chT Youth Countries 2019"]
[Site "Wuerzburg"]
[Date "2019.10.02"]
[Round "2.1"]
[White "Svane, Frederik"]
[Black "Muckle, Julius"]
[Result "1/2-1/2"]
[ECO "C05"]
[WhiteElo "2360"]
[BlackElo "2398"]
[Annotator "NA"]
[PlyCount "117"]
[EventDate "2019.10.02"]
[EventType "team-tourn"]
[EventRounds "7"]
[EventCountry "GER"]
[SourceTitle "playchess.com"]
[Source "ChessBase"]
[SourceQuality "1"]
[WhiteTeam "Schleswig-Holstein"]
[BlackTeam "Rheinland-Pfalz"]
[TimeControl "40/5400+30:1800+30"]

1. e4 {[%emt 0:00:00]} e6 {[%emt 0:00:00]} 2. d4 {[%emt 0:00:00]} d5 {[%emt 0:00:00]} 3. Nd2 {[%emt 0:00:00]} Nf6 {[%emt 0:00:11]} 4. e5 {[%emt 0:00:10]} Nfd7 {[%emt 0:00:01]} 5. Bd3 {[%emt 0:00:27]} c5 {[%emt 0:00:01]} 6. c3 {[%emt 0:00:08]} Nc6 {[%emt 0:00:03]} 7. Ngf3 {[%emt 0:00:08]} Qb6 {[%emt 0:00:37]} 8. O-O {[%emt 0:00:10]} cxd4 {[%emt 0:01:32]} 9. cxd4 {[%emt 0:00:07]} Nxd4 {[%emt 0:00:41]} 10. Nxd4 {[%emt 0:00:08]} Qxd4 {[%emt 0:00:01]} 11. Nf3 {[%emt 0:00:10]} Qb4 {[%emt 0:03:43]} 12. a3 {[%emt 0:05:33]} Qb6 {[%emt 0:02:08]} 13. Be3 {[%emt 0:04:07]} Bc5 {[%emt 0:00:55]} 14. Bd2 {[%emt 0:00:04]} f6 {[%emt 0:22:14]} 15. b4 {[%emt 0:18:21]} Be7 {[%emt 0:07:03]} 16. Bc3 {[%emt 0:00:22]} O-O {[%emt 0:13:43]} 17. Qc2 {[%emt 0:00:07]} f5 {[%emt 0:05:22]} 18. Rfc1 {[%emt 0:00:12]} Qd8 {[%emt 0:02:50]} 19. a4 {[%emt 0:04:24]} Nb6 {[%emt 0:19:36]} 20. a5 {[%emt 0:01:44]} d4 {[%emt 0:01:49]} 21. Nxd4 {[%emt 0:17:11]} Nd5 {[%emt 0:00:36]} 22. Bc4 {[%emt 0:01:27]} Nxb4 {[%emt 0:05:46]} 23. Bxb4 {[%emt 0:02:03]} Bxb4 {[%emt 0:00:01]} 24. Nxe6 {[%emt 0:24:30]} Bxe6 {[%emt 0:00:05]} 25. Bxe6+ {[%emt 0:00:03]} Kh8 {[%emt 0:00:03]} 26. Bxf5 {[%emt 0:01:50]} Bxa5 {[%emt 0:03:18]} 27. Ra3 {[%emt 0:15:25]} Bb6 {[%emt 0:00:34]} 28. Rh3 {[%emt 0:01:21]} h6 {[%emt 0:00:24]} 29. Rf3 {[%emt 0:01:02]} Qg5 {[%emt 0:01:42]} 30. Rf1 {[%emt 0:00:12]} g6 {[%emt 0:03:14]} 31. Be4 {[%emt 0:00:05]} Rxf3 {[%emt 0:04:10]} 32. Bxf3 {[%emt 0:00:05]} Rf8 {[%emt 0:00:03]} 33. e6 {[%emt 0:02:53]} Kg7 {[%emt 0:02:26]} 34. Rd1 {[%emt 0:01:54]} Rd8 {[%emt 0:00:26]} 35. Rxd8 {[%emt 0:00:33]} Qxd8 {[%emt 0:00:11]} 36. Bxb7 {[%emt 0:00:14]} Qf6 {[%emt 0:00:24]} 37. Qa2 {[%emt 0:00:45]} Qc3 {[%emt 0:01:12]} 38. g3 {[%emt 0:00:16]} Kf6 {[%emt 0:01:15]} 39. Kg2 {[%emt 0:00:13]} Qe5 {[%emt 0:00:35]} 40. Bd5 {[%emt 0:00:50]} h5 {[%emt 0:00:30]} 41. Qb3 {[%emt 0:02:00]} Qe2 {[%emt 0:08:59]} 42. Qc3+ {[%emt 0:06:04]} Kf5 {[%emt 0:04:24]} 43. Qf3+ {[%emt 0:00:04]} Qxf3+ {[%emt 0:00:05]} 44. Kxf3 {[%emt 0:00:07]} Kf6 {[%emt 0:00:58]} 45. Ke2 {[%emt 0:00:35]} a5 {[%emt 0:00:12]} 46. f4 {[%emt 0:02:47]} a4 {[%emt 0:03:14]} 47. Kf3 {[%emt 0:01:02]} Bc5 {[%emt 0:01:43]} 48. Ba2 {[%emt 0:00:07]} a3 {[%emt 0:00:28]} 49. Ke4 {[%emt 0:00:36]} Be7 {[%emt 0:02:23]} 50. Kd5 {[%emt 0:00:44]} Bb4 {[%emt 0:00:19]} 51. Kc4 {[%emt 0:00:47]} Bf8 {[%emt 0:00:24]} 52. Kd5 {[%emt 0:02:57]} Be7 {[%emt 0:00:12]} 53. Kc6 {[%emt 0:01:14]} Bf8 {[%emt 0:00:11]} 54. Kd7 {[%emt 0:00:34]} Bb4 {[%emt 0:00:07]} 55. h3 {[%emt 0:00:16]} Bc5 {[%emt 0:00:28]} 56. Bb1 {[%emt 0:00:11]} Bb4 {[%emt 0:00:10]} 57. Ba2 {[%emt 0:00:27]} Bc5 {[%emt 0:00:05]} 58. Bd5 {[%emt 0:01:20]} Bb4 {[%emt 0:00:11]} 59. Ba2 {[%emt 0:00:56] normal Ke5} 1/2-1/2

[Event "-chT Youth Countries 2019"]
[Site "Wuerzburg"]
[Date "2019.10.02"]
[Round "2.1"]
[White "Vuckovic, Zarko"]
[Black "Polster, Christian"]
[Result "0-1"]
[ECO "B35"]
[WhiteElo "2253"]
[BlackElo "2279"]
[Annotator "NA"]
[PlyCount "134"]
[EventDate "2019.10.02"]
[EventType "team-tourn"]
[EventRounds "7"]
[EventCountry "GER"]
[SourceTitle "playchess.com"]
[Source "ChessBase"]
[SourceQuality "1"]
[WhiteTeam "Bayern 1"]
[BlackTeam "Niedersachsen"]
[TimeControl "40/5400+30:1800+30"]

1. e4 {[%emt 0:00:00]} c5 {[%emt 0:00:00]} 2. Nc3 {[%emt 0:00:00]} Nc6 {[%emt 0:00:00]} 3. Nge2 {[%emt 0:00:00]} g6 {[%emt 0:04:46]} 4. d4 {[%emt 0:02:05]} cxd4 {[%emt 0:00:13]} 5. Nxd4 {[%emt 0:00:01]} Bg7 {[%emt 0:00:10]} 6. Be3 {[%emt 0:00:05]} Nf6 {[%emt 0:01:27]} 7. Bc4 {[%emt 0:00:51]} Qa5 {[%emt 0:01:16]} 8. O-O {[%emt 0:00:08]} d6 {[%emt 0:00:51]} 9. Nb3 {[%emt 0:08:29]} Qd8 {[%emt 0:05:32]} 10. Be2 {[%emt 0:02:19]} O-O {[%emt 0:02:41]} 11. f4 {[%emt 0:00:07]} Be6 {[%emt 0:07:07]} 12. Bf3 {[%emt 0:01:38]} Na5 {[%emt 0:07:52]} 13. e5 {[%emt 0:17:09]} Ne8 {[%emt 0:05:05]} 14. Nxa5 {[%emt 0:21:57]} Qxa5 {[%emt 0:01:49]} 15. Bxb7 {[%emt 0:00:10]} Rb8 {[%emt 0:01:00]} 16. Bd5 {[%emt 0:00:04]} Rxb2 {[%emt 0:05:44]} 17. Bxe6 {[%emt 0:00:11]} fxe6 {[%emt 0:04:01]} 18. Ne4 {[%emt 0:00:06]} dxe5 {[%emt 0:05:49]} 19. Qg4 {[%emt 0:07:15]} Nc7 {[%emt 0:14:23]} 20. Ng5 {[%emt 0:11:34]} Rf5 {[%emt 0:06:38]} 21. c4 {[%emt 0:03:20]} exf4 {[%emt 0:02:59]} 22. Bxf4 {[%emt 0:00:01]} Qb6+ {[%emt 0:00:53]} 23. Kh1 {[%emt 0:00:34]} Rf2 {[%emt 0:02:56]} 24. Nf3 {[%emt 0:11:28]} Bxa1 {[%emt 0:02:11]} 25. Rxa1 {[%emt 0:00:02]} Rb2 {[%emt 0:06:27]} 26. h3 {[%emt 0:01:01]} Ne8 {[%emt 0:02:09]} 27. Be5 {[%emt 0:01:50]} Rb1+ {[%emt 0:00:27]} 28. Rxb1 {[%emt 0:00:04]} Qxb1+ {[%emt 0:00:14]} 29. Kh2 {[%emt 0:00:01]} Qxa2 {[%emt 0:01:25]} 30. Qe4 {[%emt 0:06:19]} Qa5 {[%emt 0:03:09]} 31. Bb2 {[%emt 0:00:59]} Qc7+ {[%emt 0:00:34]} 32. Kh1 {[%emt 0:00:44]} Qc8 {[%emt 0:04:25]} 33. Qd4 {[%emt 0:02:07]} Nf6 {[%emt 0:00:38]} 34. Qxa7 {[%emt 0:00:03]} Qc5 {[%emt 0:01:24]} 35. Qb8+ {[%emt 0:01:19]} Kg7 {[%emt 0:00:24]} 36. Qb7 {[%emt 0:00:35]} Rf4 {[%emt 0:00:44]} 37. Ne5 {[%emt 0:03:20]} Rf1+ 38. Kh2 Rb1 {[%emt 0:01:04]} 39. Ng4 {[%emt 0:00:17]} Qg1+ {[%emt 0:00:14]} 40. Kg3 {[%emt 0:00:04]} Qe1+ {[%emt 0:00:43]} 41. Kh2 {[%emt 0:30:57]} Kf7 {[%emt 0:06:27]} 42. Nh6+ {[%emt 0:00:00]} Kf8 {[%emt 0:02:04]} 43. Qb8+ {[%emt 0:00:00]} Kg7 {[%emt 0:00:07]} 44. Ng4 {[%emt 0:00:00]} e5 {[%emt 0:09:45]} 45. Qxe5 {[%emt 0:00:00]} Qxe5+ {[%emt 0:00:11]} 46. Bxe5 {[%emt 0:00:00]} Kf7 {[%emt 0:01:11]} 47. Ne3 {[%emt 0:00:00]} Nd7 {[%emt 0:00:32]} 48. Bf4 {[%emt 0:00:00]} e5 {[%emt 0:00:17]} 49. Bh6 {[%emt 0:00:00]} Ke6 {[%emt 0:01:14]} 50. Kg3 {[%emt 0:00:00]} Rc1 {[%emt 0:00:40]} 51. Kf3 {[%emt 0:00:00]} Nb6 {[%emt 0:00:26]} 52. Nd5 {[%emt 0:00:00]} Rb1 {[%emt 0:03:18]} 53. Ne3 {[%emt 0:00:00]} Rb3 {[%emt 0:00:36]} 54. Ke2 {[%emt 0:00:00]} Rxe3+ {[%emt 0:04:39]} 55. Bxe3 {[%emt 0:00:00]} Nxc4 {[%emt 0:00:05]} 56. Bc1 {[%emt 0:00:00]} Kd5 {[%emt 0:00:32]} 57. Kf3 {[%emt 0:00:00]} Kd4 {[%emt 0:01:09]} 58. Ke2 {[%emt 0:00:00]} Ke4 {[%emt 0:01:00]} 59. Bh6 {[%emt 0:00:00]} Nb6 {[%emt 0:00:49]} 60. Bg5 {[%emt 0:00:00]} Nd5 {[%emt 0:00:16]} 61. Bh6 {[%emt 0:00:00]} Nf4+ {[%emt 0:00:24]} 62. Kf2 {[%emt 0:00:00]} Ne6 {[%emt 0:00:20]} 63. Bc1 {[%emt 0:00:00]} Kd3 {[%emt 0:00:23]} 64. Ba3 {[%emt 0:00:00]} e4 {[%emt 0:00:24]} 65. Bb4 {[%emt 0:00:00]} e3+ {[%emt 0:00:48]} 66. Kf1 {[%emt 0:00:00]} Nd4 {[%emt 0:00:40]} 67. Be1 {[%emt 0:00:00]} Kc2 {[%emt 0:00:29] normal} 0-1

[Event "-chT Youth Countries 2019"]
[Site "Wuerzburg"]
[Date "2019.10.02"]
[Round "2.1"]
[White "Tiarks, Jann-Christian"]
[Black "Riehle, Marco"]
[Result "1/2-1/2"]
[ECO "C42"]
[WhiteElo "2178"]
[BlackElo "2309"]
[Annotator "NA"]
[PlyCount "71"]
[EventDate "2019.10.02"]
[EventType "team-tourn"]
[EventRounds "7"]
[EventCountry "GER"]
[SourceTitle "playchess.com"]
[Source "ChessBase"]
[SourceQuality "1"]
[WhiteTeam "SG Brandenburg / Berlin"]
[BlackTeam "Baden 2"]
[TimeControl "40/5400+30:1800+30"]

1. e4 {[%emt 0:00:00]} e5 {[%emt 0:00:00]} 2. Nf3 {[%emt 0:00:00]} Nf6 {[%emt 0:00:22]} 3. Nxe5 {[%emt 0:00:00]} Nxe4 {[%emt 0:00:04]} 4. Qe2 {[%emt 0:02:49]} Qe7 {[%emt 0:00:34]} 5. Qxe4 {[%emt 0:00:46]} d6 {[%emt 0:00:06]} 6. d4 {[%emt 0:02:56]} dxe5 {[%emt 0:05:35]} 7. dxe5 {[%emt 0:02:29]} Nc6 {[%emt 0:02:35]} 8. Bb5 {[%emt 0:03:04]} Bd7 {[%emt 0:00:07]} 9. O-O {[%emt 0:01:26]} O-O-O {[%emt 0:00:06]} 10. Nc3 {[%emt 0:00:45]} Nxe5 {[%emt 0:06:28]} 11. Bxd7+ {[%emt 0:08:48]} Nxd7 {[%emt 0:01:08]} 12. Bf4 {[%emt 0:03:45]} Qxe4 {[%emt 0:03:54]} 13. Nxe4 {[%emt 0:01:31]} h6 {[%emt 0:01:55]} 14. Rad1 {[%emt 0:05:56]} g5 {[%emt 0:02:56]} 15. Bd2 {[%emt 0:01:55]} f5 {[%emt 0:08:49]} 16. Bc3 {[%emt 0:01:21]} Rh7 {[%emt 0:02:16]} 17. Nf6 {[%emt 0:01:49]} Rf7 {[%emt 0:01:05]} 18. Nxd7 {[%emt 0:00:21]} Rdxd7 {[%emt 0:00:44]} 19. Rfe1 {[%emt 0:00:30]} Rfe7 {[%emt 0:00:58]} 20. Rxd7 {[%emt 0:00:33]} Rxe1+ {[%emt 0:00:09]} 21. Bxe1 {[%emt 0:00:03]} Kxd7 {[%emt 0:00:04]} 22. Bc3 {[%emt 0:00:21]} Ke6 {[%emt 0:00:16]} 23. Kf1 {[%emt 0:00:26]} Bd6 {[%emt 0:01:19]} 24. h3 {[%emt 0:01:14]} Be5 {[%emt 0:04:46]} 25. Bxe5 {[%emt 0:00:56]} Kxe5 {[%emt 0:00:03]} 26. Ke2 {[%emt 0:00:12]} b5 {[%emt 0:00:40]} 27. Ke3 {[%emt 0:03:57]} c5 {[%emt 0:01:25]} 28. Kd3 {[%emt 0:04:49]} h5 {[%emt 0:02:06]} 29. c3 {[%emt 0:09:29]} h4 {[%emt 0:01:11]} 30. Ke3 {[%emt 0:00:27]} Kd5 {[%emt 0:04:07]} 31. Kd3 {[%emt 0:02:43]} a5 {[%emt 0:03:42]} 32. b3 {[%emt 0:00:55]} g4 {[%emt 0:01:25]} 33. f3 {[%emt 0:02:26]} gxh3 {[%emt 0:06:51]} 34. gxh3 {[%emt 0:00:20]} Ke5 {[%emt 0:00:16]} 35. Ke3 {[%emt 0:00:15]} c4 {[%emt 0:00:38]} 36. bxc4 {[%emt 0:00:15] normal} 1/2-1/2

[Event "-chT Youth Countries 2019"]
[Site "Wuerzburg"]
[Date "2019.10.02"]
[Round "2.2"]
[White "Karsay, Pascal"]
[Black "Arndt, Magnus"]
[Result "1-0"]
[ECO "A05"]
[WhiteElo "2276"]
[BlackElo "2312"]
[Annotator "NA"]
[PlyCount "129"]
[EventDate "2019.10.02"]
[EventType "team-tourn"]
[EventRounds "7"]
[EventCountry "GER"]
[SourceTitle "playchess.com"]
[Source "ChessBase"]
[SourceQuality "1"]
[WhiteTeam "Rheinland-Pfalz"]
[BlackTeam "Schleswig-Holstein"]
[TimeControl "40/5400+30:1800+30"]

1. Nf3 {[%emt 0:00:00]} Nf6 {[%emt 0:00:00]} 2. c4 {[%emt 0:00:00]} e6 {[%emt 0:00:08]} 3. g3 {[%emt 0:00:13]} d5 {[%emt 0:00:41]} 4. b3 {[%emt 0:00:21]} Be7 {[%emt 0:00:41]} 5. Bb2 {[%emt 0:00:08]} b6 {[%emt 0:01:00]} 6. Bg2 {[%emt 0:00:21]} Bb7 {[%emt 0:00:33]} 7. O-O {[%emt 0:00:16]} O-O {[%emt 0:00:46]} 8. e3 {[%emt 0:00:10]} dxc4 {[%emt 0:06:53]} 9. bxc4 {[%emt 0:00:09]} c5 {[%emt 0:00:34]} 10. Qe2 {[%emt 0:01:01]} Nbd7 {[%emt 0:08:13]} 11. Nc3 {[%emt 0:05:15]} Rc8 {[%emt 0:04:08]} 12. d3 {[%emt 0:02:12]} Bxf3 {[%emt 0:14:31]} 13. Bxf3 {[%emt 0:01:07]} Ne5 {[%emt 0:00:12]} 14. Rad1 {[%emt 0:03:15]} Nxf3+ {[%emt 0:00:51]} 15. Qxf3 {[%emt 0:00:08]} Qc7 {[%emt 0:12:03]} 16. g4 {[%emt 0:09:17]} Nd7 {[%emt 0:12:31]} 17. Qg2 {[%emt 0:12:26]} Qc6 {[%emt 0:10:19]} 18. Ne4 {[%emt 0:05:28]} Nf6 {[%emt 0:02:14]} 19. Bxf6 {[%emt 0:06:37]} Bxf6 {[%emt 0:00:46]} 20. f4 {[%emt 0:04:00]} Kh8 {[%emt 0:05:13]} 21. Rf3 {[%emt 0:06:02]} Be7 {[%emt 0:02:38]} 22. g5 {[%emt 0:05:39]} f5 {[%emt 0:03:14]} 23. gxf6 {[%emt 0:01:05]} gxf6 {[%emt 0:00:37]} 24. f5 {[%emt 0:02:04]} exf5 {[%emt 0:01:04]} 25. Rxf5 {[%emt 0:03:41]} Rg8 {[%emt 0:00:15]} 26. Ng3 {[%emt 0:00:08]} Qxg2+ {[%emt 0:02:31]} 27. Kxg2 {[%emt 0:00:08]} Rg6 {[%emt 0:00:13]} 28. Rd5 {[%emt 0:06:22]} Rc7 {[%emt 0:01:06]} 29. Rf1 {[%emt 0:02:02]} Kg8 {[%emt 0:00:31]} 30. Rf4 {[%emt 0:02:21]} Kf7 {[%emt 0:01:35]} 31. Kf2 {[%emt 0:01:03]} Rh6 {[%emt 0:01:29]} 32. h4 {[%emt 0:01:55]} Rg6 {[%emt 0:01:08]} 33. Nf5 {[%emt 0:02:54]} Rb7 {[%emt 0:02:48]} 34. a4 {[%emt 0:04:30]} Rc7 {[%emt 0:00:20]} 35. Rf3 {[%emt 0:01:09]} Ke6 {[%emt 0:00:56]} 36. Rf4 {[%emt 0:04:06]} Kf7 {[%emt 0:00:07]} 37. Re4 {[%emt 0:01:38]} Rb7 {[%emt 0:01:07]} 38. Rd6 {[%emt 0:04:02]} Rc7 {[%emt 0:00:13]} 39. Rde6 {[%emt 0:00:20]} Bf8 {[%emt 0:00:14]} 40. Re8 {[%emt 0:03:20]} Rd7 {[%emt 0:03:05]} 41. Ra8 {[%emt 0:31:49]} h5 {[%emt 0:05:44]} 42. Ree8 {[%emt 0:00:00]} Bg7 {[%emt 0:05:04]} 43. e4 {[%emt 0:00:00]} Rg4 {[%emt 0:02:36]} 44. Rad8 {[%emt 0:00:00]} Rxd8 {[%emt 0:01:55]} 45. Rxd8 {[%emt 0:00:00]} Kg6 {[%emt 0:00:56]} 46. Rg8 {[%emt 0:00:00]} Kh7 {[%emt 0:01:21]} 47. Ra8 {[%emt 0:00:00]} Bh6 {[%emt 0:00:40]} 48. Rxa7+ {[%emt 0:00:00]} Kg6 {[%emt 0:00:36]} 49. Rb7 {[%emt 0:00:00]} Rf4+ {[%emt 0:00:00]} 50. Ke2 {[%emt 0:00:00]} Rg4 {[%emt 0:00:06]} 51. Rxb6 {[%emt 0:00:00]} Rg2+ {[%emt 0:00:45]} 52. Kf3 {[%emt 0:00:00]} Rd2 {[%emt 0:00:29]} 53. Nxh6 {[%emt 0:00:00]} Rxd3+ {[%emt 0:00:30]} 54. Ke2 {[%emt 0:00:00]} Rd4 {[%emt 0:00:12]} 55. Nf5 {[%emt 0:00:00]} Rxe4+ {[%emt 0:00:07]} 56. Ne3 {[%emt 0:00:00]} Rxh4 {[%emt 0:00:10]} 57. Rb5 {[%emt 0:00:00]} Rh2+ {[%emt 0:00:45]} 58. Kf3 {[%emt 0:00:00]} Ra2 {[%emt 0:00:14]} 59. Rxc5 {[%emt 0:00:00]} Rxa4 {[%emt 0:01:58]} 60. Ng2 {[%emt 0:00:00]} Kf7 {[%emt 0:03:54]} 61. Nf4 {[%emt 0:00:00]} Ke7 {[%emt 0:01:05]} 62. Ke4 {[%emt 0:00:00]} f5+ {[%emt 0:03:04]} 63. Ke5 {[%emt 0:00:00]} h4 {[%emt 0:00:26]} 64. Rc7+ {[%emt 0:00:00]} Ke8 {[%emt 0:00:06]} 65. Ne6 {[%emt 0:00:00] normal} 1-0

[Event "-chT Youth Countries 2019"]
[Site "Wuerzburg"]
[Date "2019.10.02"]
[Round "2.2"]
[White "Niermann, Tristan"]
[Black "Wu, Luka"]
[Result "1-0"]
[ECO "E06"]
[WhiteElo "2227"]
[BlackElo "2117"]
[Annotator "NA"]
[PlyCount "107"]
[EventDate "2019.10.02"]
[EventType "team-tourn"]
[EventRounds "7"]
[EventCountry "GER"]
[SourceTitle "playchess.com"]
[Source "ChessBase"]
[SourceQuality "1"]
[WhiteTeam "Nordrhein-Westfalen"]
[BlackTeam "Baden 1"]
[TimeControl "40/5400+30:1800+30"]

1. d4 {[%emt 0:00:00]} Nf6 {[%emt 0:00:00]} 2. c4 {[%emt 0:00:00]} e6 {[%emt 0:00:00]} 3. g3 {[%emt 0:00:00]} d5 {[%emt 0:00:02]} 4. Nf3 {[%emt 0:00:00]} Be7 {[%emt 0:00:05]} 5. Bg2 {[%emt 0:00:00]} O-O {[%emt 0:00:06]} 6. O-O {[%emt 0:00:01]} dxc4 {[%emt 0:00:04]} 7. Qc2 {[%emt 0:00:11]} a6 {[%emt 0:00:06]} 8. a4 {[%emt 0:00:05]} Bd7 {[%emt 0:00:05]} 9. Qxc4 {[%emt 0:00:09]} Bc6 {[%emt 0:00:05]} 10. Bf4 {[%emt 0:00:04]} a5 {[%emt 0:00:13]} 11. Nc3 {[%emt 0:01:40]} Na6 {[%emt 0:00:45]} 12. Rac1 {[%emt 0:02:57]} h6 {[%emt 0:03:19]} 13. Rfe1 {[%emt 0:06:58]} Bxf3 {[%emt 0:01:22]} 14. Bxf3 {[%emt 0:01:17]} c6 {[%emt 0:00:08]} 15. e4 {[%emt 0:01:35]} Nb4 {[%emt 0:00:27]} 16. Red1 {[%emt 0:04:36]} Rc8 {[%emt 0:08:20]} 17. h4 {[%emt 0:10:05]} Qd7 {[%emt 0:06:51]} 18. Qe2 {[%emt 0:05:16]} Rfd8 {[%emt 0:02:17]} 19. Rd2 {[%emt 0:06:50]} Bf8 {[%emt 0:12:47]} 20. Rcd1 {[%emt 0:01:12]} Qe7 {[%emt 0:00:11]} 21. Kg2 {[%emt 0:06:34]} Rd7 {[%emt 0:00:47]} 22. Qf1 {[%emt 0:09:46]} Rcd8 {[%emt 0:02:43]} 23. Qh1 {[%emt 0:01:55]} g6 {[%emt 0:02:20]} 24. h5 {[%emt 0:08:12]} g5 {[%emt 0:00:41]} 25. Be3 {[%emt 0:00:22]} Bg7 {[%emt 0:00:09]} 26. Qh3 {[%emt 0:06:09]} Ne8 {[%emt 0:01:27]} 27. Be2 {[%emt 0:05:15]} Nc7 {[%emt 0:01:13]} 28. Qg4 {[%emt 0:05:11]} Qf8 {[%emt 0:02:18]} 29. Bc4 {[%emt 0:03:07]} Kh7 {[%emt 0:00:19]} 30. e5 {[%emt 0:00:57]} Ncd5 {[%emt 0:05:58]} 31. Nxd5 {[%emt 0:07:34]} exd5 {[%emt 0:05:48]} 32. Qf5+ {[%emt 0:01:07]} Kh8 {[%emt 0:01:26]} 33. Be2 {[%emt 0:00:18]} f6 {[%emt 0:00:29]} 34. e6 {[%emt 0:00:21]} Re7 {[%emt 0:00:15]} 35. Bg4 {[%emt 0:00:08]} Na6 {[%emt 0:01:20]} 36. Re2 {[%emt 0:01:08]} Nc7 {[%emt 0:00:26]} 37. Bd2 {[%emt 0:00:13]} b6 {[%emt 0:00:52]} 38. b4 {[%emt 0:00:21]} Ne8 {[%emt 0:00:50]} 39. Qg6 {[%emt 0:01:23]} Nd6 {[%emt 0:01:21]} 40. Bf5 {[%emt 0:00:23]} Nxf5 {[%emt 0:00:04]} 41. Qxf5 {[%emt 0:30:06]} Ra8 {[%emt 0:30:56]} 42. bxa5 {[%emt 0:00:00]} bxa5 {[%emt 0:00:00]} 43. Bc1 {[%emt 0:00:00]} Qc8 {[%emt 0:00:00]} 44. Ba3 {[%emt 0:00:00]} Rb7 {[%emt 0:00:00]} 45. g4 {[%emt 0:00:00]} Rb3 {[%emt 0:00:00]} 46. e7 {[%emt 0:00:00]} Qxf5 {[%emt 0:00:00]} 47. e8=Q+ {[%emt 0:00:00]} Kh7 {[%emt 0:00:00]} 48. gxf5 {[%emt 0:00:00]} Rxe8 {[%emt 0:00:00]} 49. Rxe8 {[%emt 0:00:00]} Rxa3 {[%emt 0:00:00]} 50. Rb1 {[%emt 0:00:00]} Rxa4 {[%emt 0:00:00]} 51. Rb7 {[%emt 0:00:00]} Rb4 {[%emt 0:00:00]} 52. Ra7 {[%emt 0:00:00]} Rxd4 {[%emt 0:00:00]} 53. Ree7 {[%emt 0:00:00]} Rg4+ {[%emt 0:00:00]} 54. Kf1 {[%emt 0:00:00] normal Bf8} 1-0